bitfinex-derivatives/quotes_SOLF0:USTF0_20250914
["timestamp","ask_amount","ask_price","bid_price","bid_amount"]
[1757820335788,18.81,248.35,248.1,3.33711593]
[1757820338585,18.81,248.35,248.11,3.3]
[1757820344298,12.09,248.31,248.11,3.3]
[1757820344492,18.81,248.3,248.11,3.3]
[1757820344697,43.4,248.29,248.11,3.3]
[1757820344890,89.96,248.28,248.11,3.3]
[1757820346797,6.72,248.28,248.11,3.3]
[1757820346996,100.14,248.27,248.11,3.3]
[1757820347200,6.72,248.26,248.11,3.3]
[1757820350296,18.7219784,248.26,248.11,3.3]
[1757820353194,100.14,248.25,248.11,3.3]
[1757820353398,6.72,248.24,248.11,3.3]
[1757820354802,6.72,248.22,248.11,3.3]
[1757820356397,6.72,248.22,248.05,3.3]
[1757820361803,6.32,248.2,248.05,3.3]
[1757820362505,100.14,248.19,248.05,3.3]
[1757820362906,6.32,248.18,248.05,3.3]
[1757820367205,6.32,248.18,248.03,3.3]
[1757820367407,18.5,248.18,248.04,3.33711593]
[1757820367608,18.5,248.18,248.05,3.3]
[1757820368203,24.72,248.18,248.05,3.3]
[1757820369714,24.72,248.18,248.04,3.33711593]
[1757820369910,43.4,248.17,248.04,3.3]
[1757820370107,6.32,248.16,248.04,3.3]
[1757820370313,74.28,248.16,248.05,3.3]
[1757820371210,74.28,248.16,248.05,6.63711593]
[1757820371408,97.2,248.16,248.05,6.63711593]
[1757820371810,97.2,248.16,248.06,3.33711593]
[1757820372212,97.2,248.16,248.07,3.33711593]
[1757820373214,97.2,248.16,248.08,3.33711593]
[1757820374307,106.48,248.16,248.08,3.33711593]
[1757820376517,6.32,248.16,248.08,6.63711593]
[1757820376715,100.14,248.18,248.11,3.3]
[1757820377020,100.14,248.18,248.11,6.63711593]
[1757820377216,100.14,248.18,248.12,3.33711593]
[1757820377908,106.46,248.18,248.12,3.33711593]
[1757820378514,106.46,248.18,248.11,3.33711593]
[1757820379115,106.46,248.18,248.12,3.33711593]
[1757820380913,106.46,248.18,248.13,3.33711593]
[1757820381213,6.32,248.17,248.13,3.33711593]
[1757820382119,6.32,248.17,248.13,6.63711593]
[1757820382318,6.32,248.17,248.14,3.33711593]
[1757820383914,6.32,248.17,248.16,3.33711593]
[1757820384221,6.32,248.17,248.15,3.33711593]
[1757820388516,100.14,248.2,248.15,3.33711593]
[1757820388716,6.33,248.19,248.15,3.33711593]
[1757820389222,6.33,248.19,248.08,9.9590217]
[1757820389223,6.33,248.19,248.12,3.33711593]
[1757820392723,6.33,248.19,248.08,7.75408529]
[1757820392724,6.33,248.19,248.11,3.33711593]
[1757820392914,6.33,248.19,248.1,3.33711593]
[1757820393824,6.33,248.19,248.09,3.33711593]
[1757820394727,34.77,248.19,248.11,3.33711593]
[1757820396227,6.33,248.19,248.14,3.33711593]
[1757820396429,6.33,248.19,248.15,3.33711593]
[1757820397230,6.33,248.19,248.15,6.63711593]
[1757820398932,106.45,248.21,248.15,6.63711593]
[1757820399833,106.45,248.21,248.15,3.33711593]
[1757820400033,106.45,248.21,248.14,3.33711593]
[1757820400635,106.45,248.21,248.15,3.33711593]
[1757820402236,106.45,248.21,248.14,3.33711593]
[1757820403734,106.45,248.21,248.14,6.63711593]
[1757820406943,106.45,248.21,248.14,3.33711593]
[1757820407141,106.45,248.21,248.12,3.33711593]
[1757820407543,106.45,248.21,248.1,3.33711593]
[1757820407744,106.45,248.21,248.08,3.33711593]
[1757820408844,106.45,248.21,248.07,3.33711593]
[1757820409241,106.45,248.21,248.06,3.33711593]
[1757820410042,106.45,248.21,248.07,3.33711593]
[1757820410345,106.45,248.21,248.06,3.33711593]
[1757820411247,100.1,248.2,248.06,3.33711593]
[1757820411448,6.94,248.19,248.06,3.33711593]
[1757820415351,6.94,248.19,248.05,3.33711593]
[1757820417052,6.94,248.17,248.05,3.33711593]
[1757820417844,100.1,248.16,248.05,3.33711593]
[1757820418050,6.97,248.15,248.05,3.33711593]
[1757820418453,6.97,248.15,248.06,3.31]
[1757820418950,107.07,248.15,248.06,3.31]
[1757820419249,6.97,248.15,248.06,3.31]
[1757820419449,107.07,248.15,248.06,3.31]
[1757820422549,6.97,248.15,248.06,3.31]
[1757820422852,6.97,248.24,248.13,6.64711593]
[1757820423149,29.78,248.23,248.15,3.33711593]
[1757820423746,29.78,248.23,248.14,3.33711593]
[1757820423950,6.97,248.22,248.13,6.64711593]
[1757820424855,107.05,248.22,248.13,6.64711593]
[1757820425246,107.05,248.22,248.13,3.31]
[1757820425450,6.97,248.22,248.13,6.64711593]
[1757820426855,6.97,248.22,248.13,3.33711593]
[1757820427155,100.08,248.23,248.16,3.33711593]
[1757820427654,270.74,248.25,248.17,3.31]
[1757820431961,6.97,248.24,248.17,3.31]
[1757820436260,100.04,248.23,248.17,3.31]
[1757820440562,6.97,248.22,248.15,3.33711593]
[1757820440962,6.97,248.22,248.14,6.64711593]
[1757820441258,6.97,248.22,248.11,3.33711593]
[1757820441860,6.97,248.22,248.1,6.64711593]
[1757820442761,6.97,248.22,248.11,3.33711593]
[1757820443267,6.97,248.22,248.1,3.31]
[1757820443268,6.97,248.22,248.1,6.64711593]
[1757820443865,6.97,248.22,248.09,3.33711593]
[1757820444065,6.97,248.22,248.07,3.33711593]
[1757820444368,6.97,248.22,248.06,3.33711593]
[1757820445366,6.97,248.22,248.04,3.33711593]
[1757820445966,6.97,248.22,248.03,3.33711593]
[1757820446269,6.97,248.22,248.02,3.31]
[1757820446270,6.97,248.22,248.04,3.33711593]
[1757820446470,6.97,248.22,248.03,3.33711593]
[1757820446670,6.97,248.22,248.04,3.33711593]
[1757820447171,6.97,248.22,248.03,3.33711593]
[1757820447367,53.44981191,248.28,248.04,3.31]
[1757820447671,6.36,248.29,248.16,6.64711593]
[1757820450370,6.36,248.29,248.16,3.31]
[1757820451464,69.28,248.29,248.17,3.3]
[1757820455876,69.28,248.29,248.18,3.33711593]
[1757820455877,6.36,248.29,248.18,3.33711593]
[1757820456076,6.36,248.29,248.19,3.3]
[1757820460278,6.36,248.29,248.19,6.63711593]
[1757820461080,6.36,248.29,248.19,3.3]
[1757820461382,6.36,248.29,248.19,6.63711593]
[1757820463083,270.7,248.43,248.2,3.3]
[1757820463283,106.34,248.42,248.22,3.3]
[1757820464683,118.47906935,248.42,248.22,3.3]
[1757820468086,6.36,248.42,248.26,6.63711593]
[1757820468286,6.36,248.42,248.32,6.63711593]
[1757820468483,6.36,248.42,248.32,3.3]
[1757820468688,6.36,248.42,248.32,6.63711593]
[1757820469089,6.36,248.42,248.32,3.3]
[1757820469290,6.36,248.42,248.32,6.63711593]
[1757820470089,6.36,248.42,248.32,3.3]
[1757820470684,6.36,248.55,248.32,3.3]
[1757820470885,100.28,248.54,248.32,3.3]
[1757820471091,6.36,248.53,248.33,3.3]
[1757820472083,6.36,248.53,248.34,3.29]
[1757820472287,6.9,248.51,248.34,3.29]
[1757820472791,6.9,248.51,248.34,6.62711593]
[1757820472986,6.9,248.51,248.35,6.62711593]
[1757820473186,6.9,248.51,248.35,3.29]
[1757820475490,6.9,248.51,248.3,11.82981239]
[1757820475491,6.9,248.51,248.31,3.29]
[1757820479997,18.99,248.51,248.24,3.29]
[1757820485100,23.46029468,248.51,248.24,3.29]
[1757820485298,6.75,248.46,248.24,3.29]
[1757820485492,6.75,248.42,248.24,3.29]
[1757820485698,6.75,248.4,248.24,3.29]
[1757820487600,18.84,248.4,248.15,3.29]
[1757820488102,18.84,248.4,248.06,277.1590217]
[1757820488103,18.84,248.4,248.09,3.29]
[1757820488499,23.31029468,248.4,248.09,3.29]
[1757820488702,12.09,248.36,248.09,3.29]
[1757820488896,4.47029468,248.39,248.09,15.17210019]
[1757820488897,12.09,248.32,248.09,15.17210019]
[1757820489098,6.75,248.3,248.1,3.29]
[1757820492298,18.98912814,248.3,248.1,3.29]
[1757820492499,6.75,248.3,248.1,3.29]
[1757820494404,18.84,248.3,248.1,3.29]
[1757820496695,30.87023583,248.3,248.1,3.29]
[1757820499004,30.87023583,248.3,248.01,3.29]
[1757820499707,6.75,248.25,248.01,3.29]
[1757820499907,277.41,248.25,248.01,3.29]
[1757820500206,6.75,248.23,248.01,3.29]
[1757820500999,6.75,248.23,248.02,3.29]
[1757820501204,22.38,248.22,248.02,3.29]
[1757820501603,22.38,248.22,248.03,3.29]
[1757820503004,43.66,248.21,248.03,3.29]
[1757820504110,61.32,248.21,248.03,3.33711593]
[1757820504305,6.75,248.23,248.04,3.29]
[1757820504505,25.82,248.22,248.05,3.29]
[1757820506212,270.66,248.25,248.06,3.33711593]
[1757820506405,270.66,248.25,248.08,3.33711593]
[1757820506605,270.66,248.25,248.1,3.29]
[1757820507806,6.74,248.24,248.1,3.29]
[1757820512215,100.04,248.23,248.1,3.29]
[1757820512412,6.74,248.22,248.1,3.29]
[1757820513407,6.74,248.22,248.02,3.29]
[1757820516419,6.74,248.2,248.02,3.29]
[1757820516916,6.74,248.18,248.02,3.29]
[1757820519220,6.74,248.18,248.03,3.29]
[1757820520916,6.74,248.18,248.03,6.62711593]
[1757820521122,6.74,248.18,248.04,3.29]
[1757820522123,6.74,248.18,248.04,3.33711593]
[1757820522318,6.74,248.18,248.05,3.29]
[1757820523224,6.74,248.18,248.05,6.62711593]
[1757820524225,6.74,248.18,248.07,3.29]
[1757820524420,72.64,248.17,248.07,3.29]
[1757820524822,6.74,248.18,248.07,3.29]
[1757820525027,6.74,248.18,248.08,3.29]
[1757820525227,6.74,248.18,248.08,6.62711593]
[1757820525427,6.74,248.18,248.08,3.33711593]
[1757820525622,6.74,248.18,248.09,3.29]
[1757820527129,6.74,248.19,248.1,3.29]
[1757820527327,6.74,248.19,248.1,6.62711593]
[1757820529228,6.74,248.19,248.09,3.33711593]
[1757820529926,6.74,248.19,248.08,3.33711593]
[1757820531332,6.74,248.17,248.1,3.33711593]
[1757820532034,6.74,248.17,248.09,3.33711593]
[1757820538840,6.74,248.17,248.05,7.74408529]
[1757820538841,6.74,248.17,248.08,3.33711593]
[1757820542350,6.74,248.17,248.09,6.62711593]
[1757820544249,6.74,248.17,248.09,3.29]
[1757820545949,6.74,248.17,248.08,3.37612733]
[1757820547839,6.74,248.17,248.07,3.37612733]
[1757820551451,6.74,248.17,248.08,3.37612733]
[1757820552154,6.86,248.15,248.08,3.37612733]
[1757820561259,105.78,248.15,248.09,3.37612733]
[1757820561959,105.78,248.15,248.08,3.37612733]
[1757820562352,105.78,248.15,248.07,3.37612733]
[1757820563155,105.78,248.15,248.05,3.37612733]
[1757820563362,6.86,248.15,248.05,3.37612733]
[1757820563562,6.86,248.13,248.05,3.37612733]
[1757820564658,6.86,248.13,248.02,3.37612733]
[1757820564859,6.86,248.13,248.01,3.37612733]
[1757820565764,6.86,248.13,248.0,3.37612733]
[1757820567369,6.86,248.13,247.99,6.66612733]
[1757820567670,6.86,248.13,247.99,3.29]
[1757820569066,18.95,248.13,247.99,3.29]
[1757820571068,270.82,248.12,247.99,3.29]
[1757820571271,6.81,248.11,247.99,3.29]
[1757820574564,99.98,248.1,247.99,3.29]
[1757820574869,6.81,248.09,247.99,3.29]
[1757820575570,99.96,248.08,247.99,3.29]
[1757820575765,6.81,248.09,247.99,3.29]
[1757820576071,99.98,248.08,247.99,3.29]
[1757820586577,6.81,248.09,247.99,3.29]
[1757820586779,6.81,248.09,248.0,3.37612733]
[1757820587079,99.94,248.08,248.01,3.3]
[1757820587674,6.81,248.09,248.01,3.37612733]
[1757820587883,99.94,248.08,248.05,3.3]
[1757820588078,270.82,248.12,248.05,3.3]
[1757820588279,99.94,248.11,248.08,6.67612733]
[1757820589086,99.94,248.11,248.09,3.3]
[1757820593092,6.35,248.22,248.09,3.3]
[1757820593293,6.35,248.2,248.07,3.37612733]
[1757820594095,6.35,248.2,248.06,3.37612733]
[1757820595998,6.35,248.2,248.05,6.68612733]
[1757820596400,6.35,248.2,248.06,3.37612733]
[1757820597196,6.35,248.2,248.05,3.37612733]
[1757820597395,6.35,248.2,248.01,3.31]
[1757820597396,6.35,248.2,248.03,3.37612733]
[1757820597997,6.61,248.18,248.03,3.37612733]
[1757820598397,6.61,248.18,248.02,3.37612733]
[1757820599398,6.61,248.18,248.01,3.31]
[1757820599399,6.61,248.18,248.01,6.68612733]
[1757820600302,18.7,248.18,247.98,6.67612733]
[1757820601803,18.7,248.18,247.98,3.3]
[1757820602006,18.7,248.18,247.98,6.67612733]
[1757820603106,6.61,248.18,247.99,3.3]
[1757820603308,6.61,248.16,248.01,3.3]
[1757820606402,6.61,248.16,248.01,6.67612733]
[1757820607800,6.61,248.16,248.02,3.3]
[1757820609300,6.61,248.16,248.02,3.37612733]
[1757820609498,270.84,248.23,248.09,3.3]
[1757820609703,106.47,248.22,248.1,3.3]
[1757820610602,6.61,248.22,248.1,3.3]
[1757820610802,6.61,248.22,248.11,3.3]
[1757820611103,99.86,248.21,248.11,3.3]
[1757820611499,99.86,248.21,248.11,6.67612733]
[1757820611704,99.84,248.2,248.13,3.3]
[1757820612105,270.84,248.23,248.14,3.3]
[1757820612300,99.84,248.22,248.14,3.3]
[1757820613302,272.12549597,248.23,248.14,3.3]
[1757820613303,99.84,248.21,248.14,3.3]
[1757820613500,99.84,248.21,248.15,3.3]
[1757820613696,272.12549597,248.23,248.15,3.3]
[1757820614002,371.96549597,248.23,248.15,6.67612733]
[1757820614196,371.96549597,248.23,248.15,3.3]
[1757820615104,370.68,248.23,248.15,3.3]
[1757820615501,99.84,248.23,248.15,3.3]
[1757820615701,99.84,248.23,248.15,3.37612733]
[1757820615904,99.84,248.23,248.16,3.3]
[1757820616097,1.28549597,248.27,248.16,3.3]
[1757820616303,18.7,248.26,248.16,3.3]
[1757820616605,18.7,248.26,248.17,3.3]
[1757820617508,18.7,248.26,248.18,3.3]
[1757820618810,25.31,248.26,248.18,3.3]
[1757820619009,1.28549597,248.25,248.18,3.3]
[1757820626213,65.74,248.29,248.18,3.3]
[1757820626509,0.82212715,248.27,248.18,3.3]
[1757820626901,6.61,248.31,248.18,3.3]
[1757820627107,0.82212715,248.29,248.19,3.3]
[1757820628105,6.61,248.31,248.19,3.3]
[1757820628304,0.82212715,248.29,248.19,3.3]
[1757820628610,0.82212715,248.23,248.19,3.3]
[1757820628809,6.61,248.26,248.19,3.3]
[1757820629009,0.82212715,248.25,248.17,3.29]
[1757820630405,0.82212715,248.28,248.19,3.29]
[1757820630605,6.61,248.34,248.23,3.35822212]
[1757820630811,0.82212715,248.33,248.24,3.29]
[1757820635116,0.82212715,248.37,248.26,3.29]
[1757820635413,270.6,248.51,248.26,3.29]
[1757820635414,0.82212715,248.39,248.26,3.29]
[1757820636009,0.82212715,248.33,248.26,3.29]
[1757820638112,0.82212715,248.27,248.21,3.29]
[1757820638307,0.82212715,248.27,248.19,3.35822212]
[1757820638308,0.82212715,248.23,248.16,3.29]
[1757820640214,0.82212715,248.2,248.16,3.29]
[1757820640416,0.82212715,248.17,248.13,11.97805851]
[1757820640617,7.43212715,248.17,248.12,3.29]
[1757820641013,0.82212715,248.17,248.12,11.86376756]
[1757820641210,0.82212715,248.17,248.09,3.29]
[1757820643821,0.82212715,248.2,248.09,3.29]
[1757820644012,0.82212715,248.2,248.11,3.29]
[1757820644217,0.82212715,248.2,248.11,15.21222852]
[1757820644418,0.82212715,248.2,248.11,3.29]
[1757820644619,6.61,248.22,248.11,3.29]
[1757820644818,6.61,248.19,248.11,3.29]
[1757820646720,6.61,248.19,248.11,15.62913191]
[1757820647712,0.82212715,248.2,248.11,12.33913191]
[1757820647918,0.82212715,248.2,248.12,3.29]
[1757820648120,0.82212715,248.2,248.12,6.64822212]
[1757820648520,6.61,248.24,248.13,3.29]
[1757820648521,0.82212715,248.23,248.13,3.29]
[1757820648927,6.61,248.22,248.13,3.29]
[1757820649220,0.82212715,248.2,248.13,3.29]
[1757820649424,6.61,248.22,248.13,3.29]
[1757820649623,0.82212715,248.19,248.13,3.29]
[1757820650019,6.61,248.22,248.13,3.29]
[1757820650217,6.61,248.22,248.14,3.35822212]
[1757820651323,6.61,248.22,248.15,3.35822212]
[1757820652324,6.61,248.22,248.16,3.35822212]
[1757820654123,6.61,248.22,248.17,3.35822212]
[1757820654720,0.82212715,248.24,248.18,3.3]
[1757820655026,0.82212715,248.26,248.18,3.3]
[1757820655324,0.82212715,248.26,248.19,3.35822212]
[1757820655518,0.82212715,248.23,248.19,3.35822212]
[1757820655715,6.99,248.22,248.16,3.35822212]
[1757820657226,6.99,248.19,248.17,3.35822212]
[1757820657727,6.96,248.19,248.17,3.35822212]
[1757820657928,0.82212715,248.2,248.17,3.35822212]
[1757820658124,0.82212715,248.2,248.16,3.35822212]
[1757820658329,6.96,248.19,248.16,3.35822212]
[1757820658524,0.82212715,248.2,248.16,3.35822212]
[1757820658926,6.96,248.19,248.16,3.35822212]
[1757820659230,0.82212715,248.2,248.16,3.35822212]
[1757820659432,6.96,248.19,248.16,3.35822212]
[1757820659929,0.82212715,248.2,248.16,3.35822212]
[1757820660131,6.96,248.19,248.16,3.35822212]
[1757820660931,0.82212715,248.2,248.16,3.35822212]
[1757820661430,6.96,248.19,248.16,3.35822212]
[1757820662131,0.82212715,248.23,248.17,3.3]
[1757820662326,6.96,248.19,248.14,3.35822212]
[1757820662631,6.96,248.16,248.13,3.35822212]
[1757820663332,7.78212715,248.16,248.13,3.35822212]
[1757820664133,0.82212715,248.16,248.13,3.35822212]
[1757820664330,0.82212715,248.19,248.13,3.3]
[1757820664526,0.82212715,248.19,248.13,6.65822212]
[1757820665032,0.82212715,248.22,248.15,6.65822212]
[1757820665232,7.78212715,248.25,248.18,3.3]
[1757820665429,7.78212715,248.25,248.18,6.65822212]
[1757820665735,7.78212715,248.25,248.19,3.35822212]
[1757820666633,7.78212715,248.25,248.18,6.65822212]
[1757820667433,7.78212715,248.25,248.18,3.3]
[1757820669232,7.78212715,248.25,248.17,3.35822212]
[1757820669233,0.82212715,248.22,248.17,3.35822212]
[1757820669432,6.96,248.21,248.17,3.35822212]
[1757820669627,0.82212715,248.22,248.16,3.35822212]
[1757820669827,6.96,248.18,248.16,3.35822212]
[1757820670829,6.96,248.18,248.15,3.35822212]
[1757820671733,6.96,248.18,248.16,3.35822212]
[1757820678237,6.96,248.18,248.17,3.35822212]
[1757820680740,6.96,248.18,248.16,3.35822212]
[1757820680941,0.82212715,248.22,248.16,3.35822212]
[1757820681141,6.96,248.21,248.17,3.35822212]
[1757820681540,0.82212715,248.22,248.17,3.35822212]
[1757820681843,6.96,248.18,248.17,3.35822212]
[1757820682035,6.96,248.18,248.13,3.35822212]
[1757820682243,6.96,248.15,248.13,3.35822212]
[1757820682539,6.96,248.15,248.12,3.35822212]
[1757820683137,6.96,248.15,248.13,3.35822212]
[1757820683338,0.82212715,248.16,248.13,3.35822212]
[1757820683845,6.96,248.15,248.13,3.35822212]
[1757820684040,0.82212715,248.16,248.13,3.35822212]
[1757820684242,0.82212715,248.16,248.12,3.35822212]
[1757820684640,6.96,248.12,248.11,3.35822212]
[1757820684945,0.82212715,248.13,248.1,3.35822212]
[1757820685142,6.96,248.12,248.1,3.35822212]
[1757820685349,6.96,248.12,248.11,3.35822212]
[1757820686243,6.96,248.12,248.1,3.35822212]
[1757820686449,0.82212715,248.13,248.1,3.35822212]
[1757820686642,6.96,248.12,248.1,3.35822212]
[1757820687645,0.82212715,248.13,248.1,3.35822212]
[1757820687844,6.97,248.12,248.1,3.35822212]
[1757820688044,0.82212715,248.13,248.08,3.35822212]
[1757820688347,1.28631351,248.15,248.08,3.35822212]
[1757820688645,6.97,248.14,248.08,3.35822212]
[1757820689250,6.97,248.14,248.07,3.35822212]
[1757820689444,6.97,248.14,248.07,6.65822212]
[1757820691147,6.97,248.14,248.08,3.35822212]
[1757820691343,6.97,248.14,248.07,6.65822212]
[1757820691752,6.97,248.14,248.09,3.35822212]
[1757820691951,60.72631351,248.17,248.08,3.35822212]
[1757820691952,6.97,248.16,248.08,3.35822212]
[1757820692453,6.97,248.16,248.07,6.65822212]
[1757820693556,6.97,248.21,248.11,3.3]
[1757820693752,6.97,248.21,248.14,3.3]
[1757820695858,6.97,248.21,248.14,6.65822212]
[1757820696255,12.09,248.33,248.15,3.3]
[1757820696256,6.97,248.33,248.15,3.3]
[1757820696461,6.97,248.29,248.17,3.35822212]
[1757820697360,6.97,248.25,248.15,3.35822212]
[1757820698060,6.97,248.25,248.14,3.35822212]
[1757820699259,6.97,248.25,248.11,7.75408529]
[1757820699260,6.97,248.25,248.15,3.35822212]
[1757820699558,6.97,248.25,248.14,3.35822212]
[1757820699857,1.28631351,248.22,248.14,3.35822212]
[1757820700060,6.97,248.21,248.14,3.35822212]
[1757820700359,6.97,248.21,248.14,6.65822212]
[1757820700555,6.97,248.21,248.15,3.35822212]
[1757820701961,6.97,248.21,248.17,3.3]
[1757820702761,6.97,248.25,248.16,6.65822212]
[1757820703856,6.97,248.25,248.18,3.35822212]
[1757820704165,6.97,248.25,248.19,3.3]
[1757820705162,31.45,248.29,248.19,6.65822212]
[1757820705363,31.45,248.29,248.21,3.35822212]
[1757820705961,31.45,248.29,248.19,6.65822212]
[1757820706964,31.45,248.29,248.2,3.35822212]
[1757820707166,31.45,248.29,248.19,3.3]
[1757820707167,31.45,248.29,248.19,6.65822212]
[1757820710471,6.97,248.29,248.19,6.65822212]
[1757820710671,106.53,248.29,248.19,6.65822212]
[1757820716571,106.53,248.29,248.19,3.3]
[1757820716772,1.28631351,248.26,248.19,3.3]
[1757820717072,6.99,248.25,248.19,3.3]
[1757820718973,6.99,248.25,248.18,3.35822212]
[1757820719275,6.99,248.25,248.17,3.35822212]
[1757820720071,6.99,248.25,248.18,3.35822212]
[1757820720372,6.99,248.25,248.17,3.35822212]
[1757820720671,6.99,248.25,248.18,3.35822212]
[1757820720873,6.99,248.25,248.17,3.35822212]
[1757820721074,1.28631351,248.26,248.18,3.29]
[1757820721273,1.28631351,248.26,248.19,3.29]
[1757820722370,1.28631351,248.26,248.19,6.64822212]
[1757820722868,1.28631351,248.26,248.2,3.35822212]
[1757820723268,7.96631351,248.26,248.2,3.35822212]
[1757820724876,7.96631351,248.26,248.19,6.64822212]
[1757820725081,7.96631351,248.26,248.19,3.35822212]
[1757820725272,7.96631351,248.26,248.18,3.35822212]
[1757820726075,7.96631351,248.26,248.18,6.64822212]
[1757820727169,7.96631351,248.26,248.19,3.35822212]
[1757820727576,6.68,248.26,248.2,3.29]
[1757820729278,1.28631351,248.28,248.21,3.35822212]
[1757820729778,6.68,248.3,248.23,3.29]
[1757820731680,6.68,248.3,248.24,3.35822212]
[1757820732782,1.28631351,248.32,248.26,3.29]
[1757820733581,1.28631351,248.32,248.26,6.64822212]
[1757820734983,6.68,248.31,248.26,3.35822212]
[1757820735178,6.68,248.31,248.25,3.35822212]
[1757820736079,7.96631351,248.32,248.25,3.35822212]
[1757820736286,6.68,248.36,248.28,6.64822212]
[1757820736681,6.68,248.36,248.29,3.29]
[1757820736887,6.68,248.36,248.3,3.35822212]
[1757820737485,1.28631351,248.38,248.19,1.28631351]
[1757820737486,1.28631351,248.38,248.32,3.35822212]
[1757820738488,1.28631351,248.42,248.36,3.29]
[1757820740489,6.68,248.41,248.34,3.35822212]
[1757820740690,6.68,248.41,248.33,3.35822212]
[1757820742188,6.68,248.41,248.32,6.64822212]
[1757820743384,6.68,248.37,248.31,3.35822212]
[1757820743580,1.28631351,248.34,248.31,3.35822212]
[1757820743785,1.28631351,248.34,248.3,3.35822212]
[1757820743986,1.28631351,248.34,248.25,3.35822212]
[1757820744288,7.96631351,248.3,248.25,6.64822212]
[1757820745193,7.96631351,248.3,248.25,3.29]
[1757820745488,7.96631351,248.3,248.25,6.64822212]
[1757820746092,7.96631351,248.3,248.26,3.29]
[1757820746397,7.96631351,248.3,248.26,6.64822212]
[1757820746691,1.28631351,248.3,248.27,3.29]
[1757820747388,6.68,248.37,248.26,3.35822212]
[1757820747687,6.68,248.32,248.26,3.35822212]
[1757820748487,0.82188902,248.31,248.27,3.29]
[1757820749198,7.21188902,248.31,248.27,3.29]
[1757820749897,0.82188902,248.3,248.27,3.29]
[1757820750594,6.39,248.29,248.25,3.35822212]
[1757820750790,7.21188902,248.27,248.24,3.35822212]
[1757820750994,7.21188902,248.27,248.23,3.35822212]
[1757820751294,0.82188902,248.24,248.22,3.35822212]
[1757820751493,7.21188902,248.24,248.21,3.35822212]
[1757820751797,7.21188902,248.24,248.2,3.35822212]
[1757820752595,7.21188902,248.24,248.2,6.64822212]
[1757820753793,7.21188902,248.24,248.2,3.35822212]
[1757820753794,0.82188902,248.24,248.2,3.35822212]
[1757820753996,0.82188902,248.27,248.2,3.35822212]
[1757820754293,0.82188902,248.27,248.2,6.64822212]
[1757820754691,6.39,248.26,248.2,3.35822212]
[1757820755688,0.82188902,248.27,248.2,3.35822212]
[1757820759200,0.82188902,248.27,248.19,15.53332744]
[1757820759201,0.82188902,248.27,248.21,3.35822212]
[1757820760098,6.39,248.29,248.21,3.35822212]
[1757820762001,6.39,248.29,248.22,3.35822212]
[1757820763302,6.39,248.29,248.21,3.35822212]
[1757820764703,6.39,248.29,248.22,3.29]
[1757820764902,6.39,248.29,248.22,6.64822212]
[1757820765306,6.39,248.35,248.25,3.35822212]
[1757820769809,6.39,248.35,248.26,3.29]
[1757820770008,6.39,248.35,248.27,3.35822212]
[1757820770602,6.39,248.35,248.26,6.64822212]
[1757820771206,6.39,248.35,248.27,3.35822212]
[1757820771401,6.39,248.35,248.26,6.64822212]
[1757820771706,6.39,248.35,248.23,4.45408529]
[1757820771707,6.39,248.32,248.24,3.35822212]